Workbook

Sheet Фінансовий звіт
B2: РІЧНИЙ ФІНАНСОВИЙ ЗВІТ | K2: 2016 | N2: Виберіть рік звіту в клітинці L2
B3: НАЗВА КОМПАНІЇ | N3: Щоб змінити дані, виберіть аркуш "Введення фінансових даних"
B5: КЛЮЧОВІ ПОКАЗНИКИ | D5: Клацніть, щоб змінити ключові показники звіту
B7: =Обчислення!B8 -> ДОХОДИ | D7: =Обчислення!B9 -> ЧИСТИЙ ПРИБУТОК | F7: =Обчислення!B10 -> ВІДСОТКОВА СТАВКА | H7: =Обчислення!B11 -> АМОРТИЗАЦІЯ | J7: =Обчислення!B12 -> ОПЕРАЦІЙНИЙ ПРИБУТОК
B8: =IFERROR(Обчислення!G8,"") -> 1,444,671₴ | D8: =IFERROR(Обчислення!G9,"") -> 539,799₴ | F8: =IFERROR(Обчислення!G10,"") -> 30,316₴ | H8: =IFERROR(Обчислення!G11,"") -> 44,375₴ | J8: =IFERROR(Обчислення!G12,"") -> 587,408₴
B9: =Обчислення!H8 -> 0% | D9: =Обчислення!H9 -> 2% | F9: =Обчислення!H10 -> 14% | H9: =Обчислення!H11 -> 9% | J9: =Обчислення!H12 -> -5%
B13: УСІ ПОКАЗНИКИ | D13: Не змінюйте наведені нижче відомості. Клацніть, щоб ввести фінансові дані
B15: ПОКАЗНИК | D15: ="РІЧНИЙ ЗВІТ ("&ВибранийРік&")" -> РІЧНИЙ ЗВІТ (2016) | F15: ="ПОПЕРЕДНІЙ РІК ("&ВибранийРік-1&")" -> ПОПЕРЕДНІЙ РІК (2015) | H15: ЗМІНЕННЯ (%) | I15: =CONCATENATE(Роки,"-РІЧНА ТЕНДЕНЦІЯ") -> 5-РІЧНА ТЕНДЕНЦІЯ
B16: =Обчислення!B15 -> ДОХОДИ | D16: =IF($B16="","",Обчислення!G15) -> 1,444,671.04₴ | F16: =IF($B16="","",Обчислення!F15) -> 1,440,213.04₴ | H16: =IFERROR(D16/F16-1,"") -> 0%
B17: =Обчислення!B16 -> ОПЕРАЦІЙНІ ВИТРАТИ | D17: =IF($B17="","",Обчислення!G16) -> 755,355.60₴ | F17: =IF($B17="","",Обчислення!F16) -> 647,066.64₴ | H17: 17%
B18: =Обчислення!B17 -> ОПЕРАЦІЙНИЙ ПРИБУТОК | D18: =IF($B18="","",Обчислення!G17) -> 587,407.92₴ | F18: =IF($B18="","",Обчислення!F17) -> 618,542.64₴ | H18: -5%
B19: =Обчислення!B18 -> АМОРТИЗАЦІЯ | D19: =IF($B19="","",Обчислення!G18) -> 44,375.04₴ | F19: =IF($B19="","",Обчислення!F18) -> 40,547.36₴ | H19: 9%
B20: =Обчислення!B19 -> ВІДСОТКОВА СТАВКА | D20: =IF($B20="","",Обчислення!G19) -> 30,315.76₴ | F20: =IF($B20="","",Обчислення!F19) -> 26,706.40₴ | H20: 14%
B21: =Обчислення!B20 -> ЧИСТИЙ ПРИБУТОК | D21: =IF($B21="","",Обчислення!G20) -> 539,798.80₴ | F21: =IF($B21="","",Обчислення!F20) -> 530,176.80₴ | H21: 2%
B22: =Обчислення!B21 -> ПОДАТКИ | D22: =IF($B22="","",Обчислення!G21) -> 251,266.00₴ | F22: =IF($B22="","",Обчислення!F21) -> 235,396.24₴ | H22: 7%
B23: =Обчислення!B22 -> ПРИБУТОК ПІСЛЯ ПОДАТКІВ | D23: =IF($B23="","",Обчислення!G22) -> 401,981.44₴ | F23: =IF($B23="","",Обчислення!F22) -> 339,505.60₴ | H23: 18%
B24: =Обчислення!B23 -> ПОКАЗНИК 1 | D24: =IF($B24="","",Обчислення!G23) -> 159.68₴ | F24: =IF($B24="","",Обчислення!F23) -> 134.24₴ | H24: 19%
B25: =Обчислення!B24 -> ПОКАЗНИК 2 | D25: =IF($B25="","",Обчислення!G24) -> 208.08₴ | F25: =IF($B25="","",Обчислення!F24) -> 174.72₴ | H25: 19%
B26: =Обчислення!B25 -> ПОКАЗНИК 3 | D26: =IF($B26="","",Обчислення!G25) -> 248.64₴ | F26: =IF($B26="","",Обчислення!F25) -> 211.12₴ | H26: 18%
B27: =Обчислення!B26 -> ПОКАЗНИК 4 | D27: =IF($B27="","",Обчислення!G26) -> 119.36₴ | F27: =IF($B27="","",Обчислення!F26) -> 116.72₴ | H27: 2%
B28: =Обчислення!B27 -> ПОКАЗНИК 5 | D28: =IF($B28="","",Обчислення!G27) -> 8.24₴ | F28: =IF($B28="","",Обчислення!F27) -> 8.00₴ | H28: 3%
B29: =Обчислення!B28 -> ПОКАЗНИК 6 | D29: =IF($B29="","",Обчислення!G28) -> 2.72₴ | F29: =IF($B29="","",Обчислення!F28) -> 2.40₴ | H29: 13%
B30: =Обчислення!B29 ->  | D30: =IF($B30="","",Обчислення!G29) ->  | F30: =IF($B30="","",Обчислення!F29) -> 
B31: =Обчислення!B30 ->  | D31: =IF($B31="","",Обчислення!G30) ->  | F31: =IF($B31="","",Обчислення!F30) -> 
B32: =Обчислення!B31 ->  | D32: =IF($B32="","",Обчислення!G31) ->  | F32: =IF($B32="","",Обчислення!F31) -> 
B33: =Обчислення!B32 ->  | D33: =IF($B33="","",Обчислення!G32) ->  | F33: =IF($B33="","",Обчислення!F32) -> 
B34: =Обчислення!B33 ->  | D34: =IF($B34="","",Обчислення!G33) ->  | F34: =IF($B34="","",Обчислення!F33) -> 
B35: =Обчислення!B34 ->  | D35: =IF($B35="","",Обчислення!G34) ->  | F35: =IF($B35="","",Обчислення!F34) -> 
B36: =Обчислення!B35 ->  | D36: =IF($B36="","",Обчислення!G35) ->  | F36: =IF($B36="","",Обчислення!F35) -> 
B37: =Обчислення!B36 ->  | D37: =IF($B37="","",Обчислення!G36) ->  | F37: =IF($B37="","",Обчислення!F36) -> 
B38: =Обчислення!B37 ->  | D38: =IF($B38="","",Обчислення!G37) ->  | F38: =IF($B38="","",Обчислення!F37) -> 
B39: =Обчислення!B38 ->  | D39: =IF($B39="","",Обчислення!G38) ->  | F39: =IF($B39="","",Обчислення!F38) -> 
B40: =Обчислення!B39 ->  | D40: =IF($B40="","",Обчислення!G39) ->  | F40: =IF($B40="","",Обчислення!F39) -> 

Sheet Введення фінансових даних
B2: ВВЕДЕННЯ ФІНАНСОВИХ ДАНИХ
B3: МОЖНА ВИЗНАЧАТИ ДО 25 КЛЮЧОВИХ ПОКАЗНИКІВ ДЛЯ 7 РОКІВ
B4: Клацніть, щоб переглянути фінансовий звіт
B5: НАЗВА ПОКАЗНИКА | C5: 2010 | D5: 2011 | E5: 2012 | F5: 2013 | G5: 2014 | H5: 2015 | I5: 2016
B6: ДОХОДИ | C6: 1,000,000.00₴ | D6: 1,073,099.60₴ | E6: 1,141,827.04₴ | F6: 1,205,499.68₴ | G6: 1,320,356.48₴ | H6: 1,440,213.04₴ | I6: 1,444,671.04₴
B7: ОПЕРАЦІЙНІ ВИТРАТИ | C7: 520,000.00₴ | D7: 567,698.48₴ | E7: 607,398.88₴ | F7: 631,210.16₴ | G7: 653,394.96₴ | H7: 647,066.64₴ | I7: 755,355.60₴
B8: ОПЕРАЦІЙНИЙ ПРИБУТОК | C8: 480,000.00₴ | D8: 513,658.40₴ | E8: 550,861.52₴ | F8: 605,146.00₴ | G8: 614,042.08₴ | H8: 618,542.64₴ | I8: 587,407.92₴
B9: АМОРТИЗАЦІЯ | C9: 36,000.00₴ | D9: 36,142.16₴ | E9: 37,255.36₴ | F9: 39,793.68₴ | G9: 40,192.88₴ | H9: 40,547.36₴ | I9: 44,375.04₴
B10: ВІДСОТКОВА СТАВКА | C10: 20,000.00₴ | D10: 21,966.56₴ | E10: 23,144.88₴ | F10: 25,088.96₴ | G10: 25,188.24₴ | H10: 26,706.40₴ | I10: 30,315.76₴
B11: ЧИСТИЙ ПРИБУТОК | C11: 432,000.00₴ | D11: 438,088.60₴ | E11: 446,886.48₴ | F11: 477,983.60₴ | G11: 491,868.72₴ | H11: 530,176.80₴ | I11: 539,798.80₴
B12: ПОДАТКИ | C12: 176,000.00₴ | D12: 191,364.32₴ | E12: 204,613.92₴ | F12: 219,990.88₴ | G12: 226,685.36₴ | H12: 235,396.24₴ | I12: 251,266.00₴
B13: ПРИБУТОК ПІСЛЯ ПОДАТКІВ | C13: 256,000.00₴ | D13: 279,547.92₴ | E13: 307,348.24₴ | F13: 319,160.40₴ | G13: 324,861.84₴ | H13: 339,505.60₴ | I13: 401,981.44₴
B14: ПОКАЗНИК 1 | C14: 102.40₴ | D14: 102.48₴ | E14: 110.24₴ | F14: 114.32₴ | G14: 124.56₴ | H14: 134.24₴ | I14: 159.68₴
B15: ПОКАЗНИК 2 | C15: 145.60₴ | D15: 148.72₴ | E15: 153.76₴ | F15: 161.36₴ | G15: 163.84₴ | H15: 174.72₴ | I15: 208.08₴
B16: ПОКАЗНИК 3 | C16: 152.80₴ | D16: 164.40₴ | E16: 174.96₴ | F16: 185.52₴ | G16: 197.36₴ | H16: 211.12₴ | I16: 248.64₴
B17: ПОКАЗНИК 4 | C17: 96.80₴ | D17: 97.68₴ | E17: 100.72₴ | F17: 109.60₴ | G17: 110.08₴ | H17: 116.72₴ | I17: 119.36₴
B18: ПОКАЗНИК 5 | C18: 6.00₴ | D18: 6.32₴ | E18: 6.80₴ | F18: 7.12₴ | G18: 7.28₴ | H18: 8.00₴ | I18: 8.24₴
B19: ПОКАЗНИК 6 | C19: 1.84₴ | D19: 2.00₴ | E19: 2.16₴ | F19: 2.24₴ | G19: 2.32₴ | H19: 2.40₴ | I19: 2.72₴

Sheet Настройки ключових показників
B2: ВИЗНАЧТЕ ТУТ КЛЮЧОВІ ПОКАЗНИКИ
B3: ВИБЕРІТЬ ЩОНАЙБІЛЬШЕ НА 5 КЛЮЧОВИХ ПОКАЗНИКІВ, ЯКІ МАЮТЬ ВІДОБРАЖАТИСЬ У ВЕРХНІЙ ЧАСТИНІ ЗВІТУ
B4: Клацніть, щоб переглянути фінансовий звіт
B5: 1 | C5: ДОХОДИ | E5: =IF(ISBLANK(C5),"← Виберіть значення з розкривного списку",IF(COUNTIF($C$5:C5,C5)>1,"Значення "&C5&" вибрано кілька разів.","")) -> 
B6: 2 | C6: ЧИСТИЙ ПРИБУТОК | E6: =IF(ISBLANK(C6),"← Виберіть значення з розкривного списку",IF(COUNTIF($C$5:C6,C6)>1,"Значення "&C6&" вибрано кілька разів.","")) -> 
B7: 3 | C7: ВІДСОТКОВА СТАВКА | E7: =IF(ISBLANK(C7),"← Виберіть значення з розкривного списку",IF(COUNTIF($C$5:C7,C7)>1,"Значення "&C7&" вибрано кілька разів.","")) -> 
B8: 4 | C8: АМОРТИЗАЦІЯ | E8: =IF(ISBLANK(C8),"← Виберіть значення з розкривного списку",IF(COUNTIF($C$5:C8,C8)>1,"Значення "&C8&" вибрано кілька разів.","")) -> 
B9: 5 | C9: ОПЕРАЦІЙНИЙ ПРИБУТОК | E9: =IF(ISBLANK(C9),"← Виберіть значення з розкривного списку",IF(COUNTIF($C$5:C9,C9)>1,"Значення "&C9&" вибрано кілька разів.","")) -> 

Sheet Обчислення (hidden)
A1: Цей аркуш використовується для обчислень фінансової звітності та має залишатися прихованим.
D2: Розташування
B3: Цей рік | C3: =ВибранийРік -> 2016 | D3: =MATCH(C3,спскРоків,0)+1 -> 8
B4: Попередній рік | C4: =C3-1 -> 2015 | D4: =MATCH(C4,спскРоків,0)+1 -> 7
B6: Розташування | C6: =MATCH(C7,спскРоків,0)+1 -> 4 | D6: =MATCH(D7,спскРоків,0)+1 -> 5 | E6: =MATCH(E7,спскРоків,0)+1 -> 6 | F6: =MATCH(F7,спскРоків,0)+1 -> 7 | G6: =MATCH(G7,спскРоків,0)+1 -> 8 | I6: =COUNT(C6:G6) -> 5
B7: Ключові показники | C7: =D7-1 -> 2012 | D7: =E7-1 -> 2013 | E7: =F7-1 -> 2014 | F7: =G7-1 -> 2015 | G7: =C3 -> 2016
A8: =MATCH(B8,'Введення фінансових даних'!$B$6:$B$30,0) -> 1 | B8: =IF('Настройки ключових показників'!C5="","",'Настройки ключових показників'!C5) -> ДОХОДИ | C8: =IFERROR(INDEX('Введення фінансових даних'!$B$6:$I$30,$A8,C$6),NA()) -> 1141827.04 | D8: =IFERROR(INDEX('Введення фінансових даних'!$B$6:$I$30,$A8,D$6),NA()) -> 1205499.68 | E8: =IFERROR(INDEX('Введення фінансових даних'!$B$6:$I$30,$A8,E$6),NA()) -> 1320356.48 | F8: =IFERROR(INDEX('Введення фінансових даних'!$B$6:$I$30,$A8,F$6),NA()) -> 1440213.04 | G8: =IFERROR(INDEX('Введення фінансових даних'!$B$6:$I$30,$A8,G$6),NA()) -> 1444671.04 | H8: =IFERROR(G8/F8-1,"") -> 0%
A9: =MATCH(B9,'Введення фінансових даних'!$B$6:$B$30,0) -> 6 | B9: =IF('Настройки ключових показників'!C6="","",'Настройки ключових показників'!C6) -> ЧИСТИЙ ПРИБУТОК | C9: =IFERROR(INDEX('Введення фінансових даних'!$B$6:$I$30,$A9,C$6),NA()) -> 446886.48 | D9: =IFERROR(INDEX('Введення фінансових даних'!$B$6:$I$30,$A9,D$6),NA()) -> 477983.6 | E9: =IFERROR(INDEX('Введення фінансових даних'!$B$6:$I$30,$A9,E$6),NA()) -> 491868.72 | F9: =IFERROR(INDEX('Введення фінансових даних'!$B$6:$I$30,$A9,F$6),NA()) -> 530176.8 | G9: =IFERROR(INDEX('Введення фінансових даних'!$B$6:$I$30,$A9,G$6),NA()) -> 539798.8 | H9: =IFERROR(G9/F9-1,"") -> 2%
A10: =MATCH(B10,'Введення фінансових даних'!$B$6:$B$30,0) -> 5 | B10: =IF('Настройки ключових показників'!C7="","",'Настройки ключових показників'!C7) -> ВІДСОТКОВА СТАВКА | C10: =IFERROR(INDEX('Введення фінансових даних'!$B$6:$I$30,$A10,C$6),NA()) -> 23144.88 | D10: =IFERROR(INDEX('Введення фінансових даних'!$B$6:$I$30,$A10,D$6),NA()) -> 25088.96 | E10: =IFERROR(INDEX('Введення фінансових даних'!$B$6:$I$30,$A10,E$6),NA()) -> 25188.24 | F10: =IFERROR(INDEX('Введення фінансових даних'!$B$6:$I$30,$A10,F$6),NA()) -> 26706.4 | G10: =IFERROR(INDEX('Введення фінансових даних'!$B$6:$I$30,$A10,G$6),NA()) -> 30315.76 | H10: 14%
A11: =MATCH(B11,'Введення фінансових даних'!$B$6:$B$30,0) -> 4 | B11: =IF('Настройки ключових показників'!C8="","",'Настройки ключових показників'!C8) -> АМОРТИЗАЦІЯ | C11: =IFERROR(INDEX('Введення фінансових даних'!$B$6:$I$30,$A11,C$6),NA()) -> 37255.36 | D11: =IFERROR(INDEX('Введення фінансових даних'!$B$6:$I$30,$A11,D$6),NA()) -> 39793.68 | E11: =IFERROR(INDEX('Введення фінансових даних'!$B$6:$I$30,$A11,E$6),NA()) -> 40192.88 | F11: =IFERROR(INDEX('Введення фінансових даних'!$B$6:$I$30,$A11,F$6),NA()) -> 40547.36 | G11: =IFERROR(INDEX('Введення фінансових даних'!$B$6:$I$30,$A11,G$6),NA()) -> 44375.04 | H11: 9%
A12: =MATCH(B12,'Введення фінансових даних'!$B$6:$B$30,0) -> 3 | B12: =IF('Настройки ключових показників'!C9="","",'Настройки ключових показників'!C9) -> ОПЕРАЦІЙНИЙ ПРИБУТОК | C12: =IFERROR(INDEX('Введення фінансових даних'!$B$6:$I$30,$A12,C$6),NA()) -> 550861.52 | D12: =IFERROR(INDEX('Введення фінансових даних'!$B$6:$I$30,$A12,D$6),NA()) -> 605146 | E12: =IFERROR(INDEX('Введення фінансових даних'!$B$6:$I$30,$A12,E$6),NA()) -> 614042.08 | F12: =IFERROR(INDEX('Введення фінансових даних'!$B$6:$I$30,$A12,F$6),NA()) -> 618542.64 | G12: =IFERROR(INDEX('Введення фінансових даних'!$B$6:$I$30,$A12,G$6),NA()) -> 587407.92 | H12: -5%
B14: Усі показники (до 25)
A15: =ROWS($B$15:B15) -> 1 | B15: =IF('Введення фінансових даних'!B6=0,"",'Введення фінансових даних'!B6) -> ДОХОДИ | C15: =IF(B15="",NA(),IFERROR(INDEX('Введення фінансових даних'!$B$6:$I$30,$A15,C$6),NA())) -> 1141827.04 | D15: =IF(B15="",NA(),IFERROR(INDEX('Введення фінансових даних'!$B$6:$I$30,$A15,D$6),NA())) -> 1205499.68 | E15: =IF(B15="",NA(),IFERROR(INDEX('Введення фінансових даних'!$B$6:$I$30,$A15,E$6),NA())) -> 1320356.48 | F15: =IF(B15="",NA(),IFERROR(INDEX('Введення фінансових даних'!$B$6:$I$30,$A15,F$6),NA())) -> 1440213.04 | G15: =IF(B15="",NA(),IFERROR(INDEX('Введення фінансових даних'!$B$6:$I$30,$A15,G$6),NA())) -> 1444671.04
A16: =ROWS($B$15:B16) -> 2 | B16: =IF('Введення фінансових даних'!B7=0,"",'Введення фінансових даних'!B7) -> ОПЕРАЦІЙНІ ВИТРАТИ | C16: =IF(B16="",NA(),IFERROR(INDEX('Введення фінансових даних'!$B$6:$I$30,$A16,C$6),NA())) -> 607398.88 | D16: =IF(B16="",NA(),IFERROR(INDEX('Введення фінансових даних'!$B$6:$I$30,$A16,D$6),NA())) -> 631210.16 | E16: =IF(B16="",NA(),IFERROR(INDEX('Введення фінансових даних'!$B$6:$I$30,$A16,E$6),NA())) -> 653394.96 | F16: =IF(B16="",NA(),IFERROR(INDEX('Введення фінансових даних'!$B$6:$I$30,$A16,F$6),NA())) -> 647066.64 | G16: =IF(B16="",NA(),IFERROR(INDEX('Введення фінансових даних'!$B$6:$I$30,$A16,G$6),NA())) -> 755355.6
A17: =ROWS($B$15:B17) -> 3 | B17: =IF('Введення фінансових даних'!B8=0,"",'Введення фінансових даних'!B8) -> ОПЕРАЦІЙНИЙ ПРИБУТОК | C17: =IF(B17="",NA(),IFERROR(INDEX('Введення фінансових даних'!$B$6:$I$30,$A17,C$6),NA())) -> 550861.52 | D17: =IF(B17="",NA(),IFERROR(INDEX('Введення фінансових даних'!$B$6:$I$30,$A17,D$6),NA())) -> 605146 | E17: =IF(B17="",NA(),IFERROR(INDEX('Введення фінансових даних'!$B$6:$I$30,$A17,E$6),NA())) -> 614042.08 | F17: =IF(B17="",NA(),IFERROR(INDEX('Введення фінансових даних'!$B$6:$I$30,$A17,F$6),NA())) -> 618542.64 | G17: =IF(B17="",NA(),IFERROR(INDEX('Введення фінансових даних'!$B$6:$I$30,$A17,G$6),NA())) -> 587407.92
A18: =ROWS($B$15:B18) -> 4 | B18: =IF('Введення фінансових даних'!B9=0,"",'Введення фінансових даних'!B9) -> АМОРТИЗАЦІЯ | C18: =IF(B18="",NA(),IFERROR(INDEX('Введення фінансових даних'!$B$6:$I$30,$A18,C$6),NA())) -> 37255.36 | D18: =IF(B18="",NA(),IFERROR(INDEX('Введення фінансових даних'!$B$6:$I$30,$A18,D$6),NA())) -> 39793.68 | E18: =IF(B18="",NA(),IFERROR(INDEX('Введення фінансових даних'!$B$6:$I$30,$A18,E$6),NA())) -> 40192.88 | F18: =IF(B18="",NA(),IFERROR(INDEX('Введення фінансових даних'!$B$6:$I$30,$A18,F$6),NA())) -> 40547.36 | G18: =IF(B18="",NA(),IFERROR(INDEX('Введення фінансових даних'!$B$6:$I$30,$A18,G$6),NA())) -> 44375.04
A19: =ROWS($B$15:B19) -> 5 | B19: =IF('Введення фінансових даних'!B10=0,"",'Введення фінансових даних'!B10) -> ВІДСОТКОВА СТАВКА | C19: =IF(B19="",NA(),IFERROR(INDEX('Введення фінансових даних'!$B$6:$I$30,$A19,C$6),NA())) -> 23144.88 | D19: =IF(B19="",NA(),IFERROR(INDEX('Введення фінансових даних'!$B$6:$I$30,$A19,D$6),NA())) -> 25088.96 | E19: =IF(B19="",NA(),IFERROR(INDEX('Введення фінансових даних'!$B$6:$I$30,$A19,E$6),NA())) -> 25188.24 | F19: =IF(B19="",NA(),IFERROR(INDEX('Введення фінансових даних'!$B$6:$I$30,$A19,F$6),NA())) -> 26706.4 | G19: =IF(B19="",NA(),IFERROR(INDEX('Введення фінансових даних'!$B$6:$I$30,$A19,G$6),NA())) -> 30315.76
A20: =ROWS($B$15:B20) -> 6 | B20: =IF('Введення фінансових даних'!B11=0,"",'Введення фінансових даних'!B11) -> ЧИСТИЙ ПРИБУТОК | C20: =IF(B20="",NA(),IFERROR(INDEX('Введення фінансових даних'!$B$6:$I$30,$A20,C$6),NA())) -> 446886.48 | D20: =IF(B20="",NA(),IFERROR(INDEX('Введення фінансових даних'!$B$6:$I$30,$A20,D$6),NA())) -> 477983.6 | E20: =IF(B20="",NA(),IFERROR(INDEX('Введення фінансових даних'!$B$6:$I$30,$A20,E$6),NA())) -> 491868.72 | F20: =IF(B20="",NA(),IFERROR(INDEX('Введення фінансових даних'!$B$6:$I$30,$A20,F$6),NA())) -> 530176.8 | G20: =IF(B20="",NA(),IFERROR(INDEX('Введення фінансових даних'!$B$6:$I$30,$A20,G$6),NA())) -> 539798.8
A21: =ROWS($B$15:B21) -> 7 | B21: =IF('Введення фінансових даних'!B12=0,"",'Введення фінансових даних'!B12) -> ПОДАТКИ | C21: =IF(B21="",NA(),IFERROR(INDEX('Введення фінансових даних'!$B$6:$I$30,$A21,C$6),NA())) -> 204613.92 | D21: =IF(B21="",NA(),IFERROR(INDEX('Введення фінансових даних'!$B$6:$I$30,$A21,D$6),NA())) -> 219990.88 | E21: =IF(B21="",NA(),IFERROR(INDEX('Введення фінансових даних'!$B$6:$I$30,$A21,E$6),NA())) -> 226685.36 | F21: =IF(B21="",NA(),IFERROR(INDEX('Введення фінансових даних'!$B$6:$I$30,$A21,F$6),NA())) -> 235396.24 | G21: =IF(B21="",NA(),IFERROR(INDEX('Введення фінансових даних'!$B$6:$I$30,$A21,G$6),NA())) -> 251266
A22: =ROWS($B$15:B22) -> 8 | B22: =IF('Введення фінансових даних'!B13=0,"",'Введення фінансових даних'!B13) -> ПРИБУТОК ПІСЛЯ ПОДАТКІВ | C22: =IF(B22="",NA(),IFERROR(INDEX('Введення фінансових даних'!$B$6:$I$30,$A22,C$6),NA())) -> 307348.24 | D22: =IF(B22="",NA(),IFERROR(INDEX('Введення фінансових даних'!$B$6:$I$30,$A22,D$6),NA())) -> 319160.4 | E22: =IF(B22="",NA(),IFERROR(INDEX('Введення фінансових даних'!$B$6:$I$30,$A22,E$6),NA())) -> 324861.84 | F22: =IF(B22="",NA(),IFERROR(INDEX('Введення фінансових даних'!$B$6:$I$30,$A22,F$6),NA())) -> 339505.6 | G22: =IF(B22="",NA(),IFERROR(INDEX('Введення фінансових даних'!$B$6:$I$30,$A22,G$6),NA())) -> 401981.44
A23: =ROWS($B$15:B23) -> 9 | B23: =IF('Введення фінансових даних'!B14=0,"",'Введення фінансових даних'!B14) -> ПОКАЗНИК 1 | C23: =IF(B23="",NA(),IFERROR(INDEX('Введення фінансових даних'!$B$6:$I$30,$A23,C$6),NA())) -> 110.24 | D23: =IF(B23="",NA(),IFERROR(INDEX('Введення фінансових даних'!$B$6:$I$30,$A23,D$6),NA())) -> 114.32 | E23: =IF(B23="",NA(),IFERROR(INDEX('Введення фінансових даних'!$B$6:$I$30,$A23,E$6),NA())) -> 124.56 | F23: =IF(B23="",NA(),IFERROR(INDEX('Введення фінансових даних'!$B$6:$I$30,$A23,F$6),NA())) -> 134.24 | G23: =IF(B23="",NA(),IFERROR(INDEX('Введення фінансових даних'!$B$6:$I$30,$A23,G$6),NA())) -> 159.68
A24: =ROWS($B$15:B24) -> 10 | B24: =IF('Введення фінансових даних'!B15=0,"",'Введення фінансових даних'!B15) -> ПОКАЗНИК 2 | C24: =IF(B24="",NA(),IFERROR(INDEX('Введення фінансових даних'!$B$6:$I$30,$A24,C$6),NA())) -> 153.76 | D24: =IF(B24="",NA(),IFERROR(INDEX('Введення фінансових даних'!$B$6:$I$30,$A24,D$6),NA())) -> 161.36 | E24: =IF(B24="",NA(),IFERROR(INDEX('Введення фінансових даних'!$B$6:$I$30,$A24,E$6),NA())) -> 163.84 | F24: =IF(B24="",NA(),IFERROR(INDEX('Введення фінансових даних'!$B$6:$I$30,$A24,F$6),NA())) -> 174.72 | G24: =IF(B24="",NA(),IFERROR(INDEX('Введення фінансових даних'!$B$6:$I$30,$A24,G$6),NA())) -> 208.08
A25: =ROWS($B$15:B25) -> 11 | B25: =IF('Введення фінансових даних'!B16=0,"",'Введення фінансових даних'!B16) -> ПОКАЗНИК 3 | C25: =IF(B25="",NA(),IFERROR(INDEX('Введення фінансових даних'!$B$6:$I$30,$A25,C$6),NA())) -> 174.96 | D25: =IF(B25="",NA(),IFERROR(INDEX('Введення фінансових даних'!$B$6:$I$30,$A25,D$6),NA())) -> 185.52 | E25: =IF(B25="",NA(),IFERROR(INDEX('Введення фінансових даних'!$B$6:$I$30,$A25,E$6),NA())) -> 197.36 | F25: =IF(B25="",NA(),IFERROR(INDEX('Введення фінансових даних'!$B$6:$I$30,$A25,F$6),NA())) -> 211.12 | G25: =IF(B25="",NA(),IFERROR(INDEX('Введення фінансових даних'!$B$6:$I$30,$A25,G$6),NA())) -> 248.64
A26: =ROWS($B$15:B26) -> 12 | B26: =IF('Введення фінансових даних'!B17=0,"",'Введення фінансових даних'!B17) -> ПОКАЗНИК 4 | C26: =IF(B26="",NA(),IFERROR(INDEX('Введення фінансових даних'!$B$6:$I$30,$A26,C$6),NA())) -> 100.72 | D26: =IF(B26="",NA(),IFERROR(INDEX('Введення фінансових даних'!$B$6:$I$30,$A26,D$6),NA())) -> 109.6 | E26: =IF(B26="",NA(),IFERROR(INDEX('Введення фінансових даних'!$B$6:$I$30,$A26,E$6),NA())) -> 110.08 | F26: =IF(B26="",NA(),IFERROR(INDEX('Введення фінансових даних'!$B$6:$I$30,$A26,F$6),NA())) -> 116.72 | G26: =IF(B26="",NA(),IFERROR(INDEX('Введення фінансових даних'!$B$6:$I$30,$A26,G$6),NA())) -> 119.36
A27: =ROWS($B$15:B27) -> 13 | B27: =IF('Введення фінансових даних'!B18=0,"",'Введення фінансових даних'!B18) -> ПОКАЗНИК 5 | C27: =IF(B27="",NA(),IFERROR(INDEX('Введення фінансових даних'!$B$6:$I$30,$A27,C$6),NA())) -> 6.8 | D27: =IF(B27="",NA(),IFERROR(INDEX('Введення фінансових даних'!$B$6:$I$30,$A27,D$6),NA())) -> 7.12 | E27: =IF(B27="",NA(),IFERROR(INDEX('Введення фінансових даних'!$B$6:$I$30,$A27,E$6),NA())) -> 7.28 | F27: =IF(B27="",NA(),IFERROR(INDEX('Введення фінансових даних'!$B$6:$I$30,$A27,F$6),NA())) -> 8 | G27: =IF(B27="",NA(),IFERROR(INDEX('Введення фінансових даних'!$B$6:$I$30,$A27,G$6),NA())) -> 8.24
A28: =ROWS($B$15:B28) -> 14 | B28: =IF('Введення фінансових даних'!B19=0,"",'Введення фінансових даних'!B19) -> ПОКАЗНИК 6 | C28: =IF(B28="",NA(),IFERROR(INDEX('Введення фінансових даних'!$B$6:$I$30,$A28,C$6),NA())) -> 2.16 | D28: =IF(B28="",NA(),IFERROR(INDEX('Введення фінансових даних'!$B$6:$I$30,$A28,D$6),NA())) -> 2.24 | E28: =IF(B28="",NA(),IFERROR(INDEX('Введення фінансових даних'!$B$6:$I$30,$A28,E$6),NA())) -> 2.32 | F28: =IF(B28="",NA(),IFERROR(INDEX('Введення фінансових даних'!$B$6:$I$30,$A28,F$6),NA())) -> 2.4 | G28: =IF(B28="",NA(),IFERROR(INDEX('Введення фінансових даних'!$B$6:$I$30,$A28,G$6),NA())) -> 2.72
A29: =ROWS($B$15:B29) -> 15 | B29: =IF('Введення фінансових даних'!B20=0,"",'Введення фінансових даних'!B20) ->  | C29: =IF(B29="",NA(),IFERROR(INDEX('Введення фінансових даних'!$B$6:$I$30,$A29,C$6),NA())) ->  | D29: =IF(B29="",NA(),IFERROR(INDEX('Введення фінансових даних'!$B$6:$I$30,$A29,D$6),NA())) ->  | E29: =IF(B29="",NA(),IFERROR(INDEX('Введення фінансових даних'!$B$6:$I$30,$A29,E$6),NA())) ->  | F29: =IF(B29="",NA(),IFERROR(INDEX('Введення фінансових даних'!$B$6:$I$30,$A29,F$6),NA())) ->  | G29: =IF(B29="",NA(),IFERROR(INDEX('Введення фінансових даних'!$B$6:$I$30,$A29,G$6),NA())) -> 
A30: =ROWS($B$15:B30) -> 16 | B30: =IF('Введення фінансових даних'!B21=0,"",'Введення фінансових даних'!B21) ->  | C30: =IF(B30="",NA(),IFERROR(INDEX('Введення фінансових даних'!$B$6:$I$30,$A30,C$6),NA())) ->  | D30: =IF(B30="",NA(),IFERROR(INDEX('Введення фінансових даних'!$B$6:$I$30,$A30,D$6),NA())) ->  | E30: =IF(B30="",NA(),IFERROR(INDEX('Введення фінансових даних'!$B$6:$I$30,$A30,E$6),NA())) ->  | F30: =IF(B30="",NA(),IFERROR(INDEX('Введення фінансових даних'!$B$6:$I$30,$A30,F$6),NA())) ->  | G30: =IF(B30="",NA(),IFERROR(INDEX('Введення фінансових даних'!$B$6:$I$30,$A30,G$6),NA())) -> 
A31: =ROWS($B$15:B31) -> 17 | B31: =IF('Введення фінансових даних'!B22=0,"",'Введення фінансових даних'!B22) ->  | C31: =IF(B31="",NA(),IFERROR(INDEX('Введення фінансових даних'!$B$6:$I$30,$A31,C$6),NA())) ->  | D31: =IF(B31="",NA(),IFERROR(INDEX('Введення фінансових даних'!$B$6:$I$30,$A31,D$6),NA())) ->  | E31: =IF(B31="",NA(),IFERROR(INDEX('Введення фінансових даних'!$B$6:$I$30,$A31,E$6),NA())) ->  | F31: =IF(B31="",NA(),IFERROR(INDEX('Введення фінансових даних'!$B$6:$I$30,$A31,F$6),NA())) ->  | G31: =IF(B31="",NA(),IFERROR(INDEX('Введення фінансових даних'!$B$6:$I$30,$A31,G$6),NA())) -> 
A32: =ROWS($B$15:B32) -> 18 | B32: =IF('Введення фінансових даних'!B23=0,"",'Введення фінансових даних'!B23) ->  | C32: =IF(B32="",NA(),IFERROR(INDEX('Введення фінансових даних'!$B$6:$I$30,$A32,C$6),NA())) ->  | D32: =IF(B32="",NA(),IFERROR(INDEX('Введення фінансових даних'!$B$6:$I$30,$A32,D$6),NA())) ->  | E32: =IF(B32="",NA(),IFERROR(INDEX('Введення фінансових даних'!$B$6:$I$30,$A32,E$6),NA())) ->  | F32: =IF(B32="",NA(),IFERROR(INDEX('Введення фінансових даних'!$B$6:$I$30,$A32,F$6),NA())) ->  | G32: =IF(B32="",NA(),IFERROR(INDEX('Введення фінансових даних'!$B$6:$I$30,$A32,G$6),NA())) -> 
A33: =ROWS($B$15:B33) -> 19 | B33: =IF('Введення фінансових даних'!B24=0,"",'Введення фінансових даних'!B24) ->  | C33: =IF(B33="",NA(),IFERROR(INDEX('Введення фінансових даних'!$B$6:$I$30,$A33,C$6),NA())) ->  | D33: =IF(B33="",NA(),IFERROR(INDEX('Введення фінансових даних'!$B$6:$I$30,$A33,D$6),NA())) ->  | E33: =IF(B33="",NA(),IFERROR(INDEX('Введення фінансових даних'!$B$6:$I$30,$A33,E$6),NA())) ->  | F33: =IF(B33="",NA(),IFERROR(INDEX('Введення фінансових даних'!$B$6:$I$30,$A33,F$6),NA())) ->  | G33: =IF(B33="",NA(),IFERROR(INDEX('Введення фінансових даних'!$B$6:$I$30,$A33,G$6),NA())) -> 
A34: =ROWS($B$15:B34) -> 20 | B34: =IF('Введення фінансових даних'!B25=0,"",'Введення фінансових даних'!B25) ->  | C34: =IF(B34="",NA(),IFERROR(INDEX('Введення фінансових даних'!$B$6:$I$30,$A34,C$6),NA())) ->  | D34: =IF(B34="",NA(),IFERROR(INDEX('Введення фінансових даних'!$B$6:$I$30,$A34,D$6),NA())) ->  | E34: =IF(B34="",NA(),IFERROR(INDEX('Введення фінансових даних'!$B$6:$I$30,$A34,E$6),NA())) ->  | F34: =IF(B34="",NA(),IFERROR(INDEX('Введення фінансових даних'!$B$6:$I$30,$A34,F$6),NA())) ->  | G34: =IF(B34="",NA(),IFERROR(INDEX('Введення фінансових даних'!$B$6:$I$30,$A34,G$6),NA())) -> 
A35: =ROWS($B$15:B35) -> 21 | B35: =IF('Введення фінансових даних'!B26=0,"",'Введення фінансових даних'!B26) ->  | C35: =IF(B35="",NA(),IFERROR(INDEX('Введення фінансових даних'!$B$6:$I$30,$A35,C$6),NA())) ->  | D35: =IF(B35="",NA(),IFERROR(INDEX('Введення фінансових даних'!$B$6:$I$30,$A35,D$6),NA())) ->  | E35: =IF(B35="",NA(),IFERROR(INDEX('Введення фінансових даних'!$B$6:$I$30,$A35,E$6),NA())) ->  | F35: =IF(B35="",NA(),IFERROR(INDEX('Введення фінансових даних'!$B$6:$I$30,$A35,F$6),NA())) ->  | G35: =IF(B35="",NA(),IFERROR(INDEX('Введення фінансових даних'!$B$6:$I$30,$A35,G$6),NA())) -> 
A36: =ROWS($B$15:B36) -> 22 | B36: =IF('Введення фінансових даних'!B27=0,"",'Введення фінансових даних'!B27) ->  | C36: =IF(B36="",NA(),IFERROR(INDEX('Введення фінансових даних'!$B$6:$I$30,$A36,C$6),NA())) ->  | D36: =IF(B36="",NA(),IFERROR(INDEX('Введення фінансових даних'!$B$6:$I$30,$A36,D$6),NA())) ->  | E36: =IF(B36="",NA(),IFERROR(INDEX('Введення фінансових даних'!$B$6:$I$30,$A36,E$6),NA())) ->  | F36: =IF(B36="",NA(),IFERROR(INDEX('Введення фінансових даних'!$B$6:$I$30,$A36,F$6),NA())) ->  | G36: =IF(B36="",NA(),IFERROR(INDEX('Введення фінансових даних'!$B$6:$I$30,$A36,G$6),NA())) -> 
A37: =ROWS($B$15:B37) -> 23 | B37: =IF('Введення фінансових даних'!B28=0,"",'Введення фінансових даних'!B28) ->  | C37: =IF(B37="",NA(),IFERROR(INDEX('Введення фінансових даних'!$B$6:$I$30,$A37,C$6),NA())) ->  | D37: =IF(B37="",NA(),IFERROR(INDEX('Введення фінансових даних'!$B$6:$I$30,$A37,D$6),NA())) ->  | E37: =IF(B37="",NA(),IFERROR(INDEX('Введення фінансових даних'!$B$6:$I$30,$A37,E$6),NA())) ->  | F37: =IF(B37="",NA(),IFERROR(INDEX('Введення фінансових даних'!$B$6:$I$30,$A37,F$6),NA())) ->  | G37: =IF(B37="",NA(),IFERROR(INDEX('Введення фінансових даних'!$B$6:$I$30,$A37,G$6),NA())) -> 
A38: =ROWS($B$15:B38) -> 24 | B38: =IF('Введення фінансових даних'!B29=0,"",'Введення фінансових даних'!B29) ->  | C38: =IF(B38="",NA(),IFERROR(INDEX('Введення фінансових даних'!$B$6:$I$30,$A38,C$6),NA())) ->  | D38: =IF(B38="",NA(),IFERROR(INDEX('Введення фінансових даних'!$B$6:$I$30,$A38,D$6),NA())) ->  | E38: =IF(B38="",NA(),IFERROR(INDEX('Введення фінансових даних'!$B$6:$I$30,$A38,E$6),NA())) ->  | F38: =IF(B38="",NA(),IFERROR(INDEX('Введення фінансових даних'!$B$6:$I$30,$A38,F$6),NA())) ->  | G38: =IF(B38="",NA(),IFERROR(INDEX('Введення фінансових даних'!$B$6:$I$30,$A38,G$6),NA())) -> 
A39: =ROWS($B$15:B39) -> 25 | B39: =IF('Введення фінансових даних'!B30=0,"",'Введення фінансових даних'!B30) ->  | C39: =IF(B39="",NA(),IFERROR(INDEX('Введення фінансових даних'!$B$6:$I$30,$A39,C$6),NA())) ->  | D39: =IF(B39="",NA(),IFERROR(INDEX('Введення фінансових даних'!$B$6:$I$30,$A39,D$6),NA())) ->  | E39: =IF(B39="",NA(),IFERROR(INDEX('Введення фінансових даних'!$B$6:$I$30,$A39,E$6),NA())) ->  | F39: =IF(B39="",NA(),IFERROR(INDEX('Введення фінансових даних'!$B$6:$I$30,$A39,F$6),NA())) ->  | G39: =IF(B39="",NA(),IFERROR(INDEX('Введення фінансових даних'!$B$6:$I$30,$A39,G$6),NA())) -> 
